{"text_format":"3","workbook":"xlsx","n_sheets":3,"sheets":["Intro","Quelldatei","Kopie"],"not_rendered":{"images":1,"macros":1,"defined_names":1},"read":"whole","date_system":"1900"}

{"sheet":"Intro","index":0,"n_rows":38,"n_cols":21,"rows_kept":38}
{"$rows_empty":37}
[{"$nulls":20},"#"]

{"sheet":"Quelldatei","index":1,"n_rows":502,"n_cols":9,"rows_kept":502}
[null,"datensatz_typ","Name","Ort","Berufsbezeichnung","Kommentar",null,null,{"$f":"COUNTA(C:C)","v":40}]
[1,"EigenesNetzwerk","name3","ort3"]
[{"$f":"A2+1","v":2},"EigenesNetzwerk","name3","ort3","beruf3"]
[{"$f":"A3+1","v":3},"EigenesNetzwerk","name3","ort3","beruf3","komm1"]
[4,"EigenesNetzwerk","name3","ort3","beruf3"]
[5,"EigenesNetzwerk","name3","ort3"]
[6,"EigenesNetzwerk"]
[7,"EigenesNetzwerk","name2","ort2"]
[8,"EigenesNetzwerk","name2","ort2","beruf2"]
[9,"EigenesNetzwerk","name2","ort2","beruf2","komm2"]
[10,"EigenesNetzwerk","name2","ort2","beruf2"]
[11,"EigenesNetzwerk","name2","ort2"]
[12,"EigenesNetzwerk"]
[13,"EigenesNetzwerk","name3","ort3"]
[14,"EigenesNetzwerk","name3","ort3","beruf3"]
[15,"EigenesNetzwerk","name3","ort3","beruf3","komm1"]
[16,"EigenesNetzwerk","name3","ort3","beruf3"]
[17,"EigenesNetzwerk","name3","ort3"]
[18,"EigenesNetzwerk"]
[19,"EigenesNetzwerk","name2","ort2"]
[20,"EigenesNetzwerk","name2","ort2","beruf2"]
[21,"EigenesNetzwerk","name2","ort2","beruf2","komm2"]
[22,"EigenesNetzwerk","name2","ort2","beruf2"]
[23,"EigenesNetzwerk","name2","ort2"]
[24,"EigenesNetzwerk"]
[25,"EigenesNetzwerk","name2","ort2"]
[26,"EigenesNetzwerk","name2","ort2","beruf2"]
[27,"EigenesNetzwerk","name2","ort2","beruf2","komm2"]
[28,"EigenesNetzwerk","name2","ort2","beruf2"]
[29,"EigenesNetzwerk","name2","ort2"]
[30,"EigenesNetzwerk"]
[31,"EigenesNetzwerk","UUU","ort2"]
[32,"EigenesNetzwerk","UUU","ort2","beruf2"]
[33,"EigenesNetzwerk","UUU","ort2","beruf2"]
[34,"EigenesNetzwerk","UUU","ort2","beruf2"]
[35,"EigenesNetzwerk","UUU","ort2"]
[36,"EigenesNetzwerk"]
[37,"EigenesNetzwerk","XXX","ort2"]
[38,"EigenesNetzwerk","XXX","ort2","beruf2"]
[39,"EigenesNetzwerk","XXX","ort2","beruf2"]
[40,"EigenesNetzwerk","XXX","ort2","beruf2"]
[41,"EigenesNetzwerk","XXX","ort2"]
[42,"EigenesNetzwerk"]
[43,"EigenesNetzwerk","LALALLLA","ORTLA","BERUFLA","KOMMLA"]
[44,"EigenesNetzwerk","BLABAL"]
[45,"EigenesNetzwerk","abpfiff"]
[46,"EigenesNetzwerk","und nochmal anpfiff"]
[47,"EigenesNetzwerk"]
[48,"EigenesNetzwerk"]
[49,"EigenesNetzwerk"]
[50,"EigenesNetzwerk"]
[51,"EigenesNetzwerk"]
[52,"EigenesNetzwerk"]
[53,"EigenesNetzwerk"]
[54,"EigenesNetzwerk"]
[55,"EigenesNetzwerk"]
[56,"EigenesNetzwerk"]
[57,"EigenesNetzwerk"]
[58,"EigenesNetzwerk"]
[59,"EigenesNetzwerk"]
[60,"EigenesNetzwerk"]
[61,"EigenesNetzwerk"]
[62,"EigenesNetzwerk"]
[63,"EigenesNetzwerk"]
[64,"EigenesNetzwerk"]
[65,"EigenesNetzwerk"]
[66,"EigenesNetzwerk"]
[{"$f":"A67+1","v":67},"EigenesNetzwerk"]
[68,"EigenesNetzwerk"]
[69,"EigenesNetzwerk"]
[70,"EigenesNetzwerk"]
[71,"EigenesNetzwerk"]
[72,"EigenesNetzwerk"]
[73,"EigenesNetzwerk"]
[74,"EigenesNetzwerk"]
[75,"EigenesNetzwerk"]
[76,"EigenesNetzwerk"]
[77,"EigenesNetzwerk"]
[78,"EigenesNetzwerk"]
[79,"EigenesNetzwerk"]
[80,"EigenesNetzwerk"]
[81,"EigenesNetzwerk"]
[82,"EigenesNetzwerk"]
[83,"EigenesNetzwerk"]
[84,"EigenesNetzwerk"]
[85,"EigenesNetzwerk"]
[86,"EigenesNetzwerk"]
[87,"EigenesNetzwerk"]
[88,"EigenesNetzwerk"]
[89,"EigenesNetzwerk"]
[90,"EigenesNetzwerk"]
[91,"EigenesNetzwerk"]
[92,"EigenesNetzwerk"]
[93,"EigenesNetzwerk"]
[94,"EigenesNetzwerk"]
[95,"EigenesNetzwerk"]
[96,"EigenesNetzwerk"]
[97,"EigenesNetzwerk"]
[98,"EigenesNetzwerk"]
[99,"EigenesNetzwerk"]
[100,"EigenesNetzwerk"]
[101,"EigenesNetzwerk"]
[102,"EigenesNetzwerk"]
[103,"EigenesNetzwerk"]
[104,"EigenesNetzwerk"]
[105,"EigenesNetzwerk"]
[106,"EigenesNetzwerk"]
[107,"EigenesNetzwerk"]
[108,"EigenesNetzwerk"]
[109,"EigenesNetzwerk"]
[110,"EigenesNetzwerk"]
[111,"EigenesNetzwerk"]
[112,"EigenesNetzwerk"]
[113,"EigenesNetzwerk"]
[114,"EigenesNetzwerk"]
[115,"EigenesNetzwerk"]
[116,"EigenesNetzwerk"]
[117,"EigenesNetzwerk"]
[118,"EigenesNetzwerk"]
[119,"EigenesNetzwerk"]
[120,"EigenesNetzwerk"]
[121,"EigenesNetzwerk"]
[122,"EigenesNetzwerk"]
[123,"EigenesNetzwerk"]
[124,"EigenesNetzwerk"]
[125,"EigenesNetzwerk"]
[126,"EigenesNetzwerk"]
[127,"EigenesNetzwerk"]
[128,"EigenesNetzwerk"]
[129,"EigenesNetzwerk"]
[130,"EigenesNetzwerk"]
[{"$f":"A131+1","v":131},"EigenesNetzwerk"]
[132,"EigenesNetzwerk"]
[133,"EigenesNetzwerk"]
[134,"EigenesNetzwerk"]
[135,"EigenesNetzwerk"]
[136,"EigenesNetzwerk"]
[137,"EigenesNetzwerk"]
[138,"EigenesNetzwerk"]
[139,"EigenesNetzwerk"]
[140,"EigenesNetzwerk"]
[141,"EigenesNetzwerk"]
[142,"EigenesNetzwerk"]
[143,"EigenesNetzwerk"]
[144,"EigenesNetzwerk"]
[145,"EigenesNetzwerk"]
[146,"EigenesNetzwerk"]
[147,"EigenesNetzwerk"]
[148,"EigenesNetzwerk"]
[149,"EigenesNetzwerk"]
[150,"EigenesNetzwerk"]
[151,"EigenesNetzwerk"]
[152,"EigenesNetzwerk"]
[153,"EigenesNetzwerk"]
[154,"EigenesNetzwerk"]
[155,"EigenesNetzwerk"]
[156,"EigenesNetzwerk"]
[157,"EigenesNetzwerk"]
[158,"EigenesNetzwerk"]
[159,"EigenesNetzwerk"]
[160,"EigenesNetzwerk"]
[161,"EigenesNetzwerk"]
[162,"EigenesNetzwerk"]
[163,"EigenesNetzwerk"]
[164,"EigenesNetzwerk"]
[165,"EigenesNetzwerk"]
[166,"EigenesNetzwerk"]
[167,"EigenesNetzwerk"]
[168,"EigenesNetzwerk"]
[169,"EigenesNetzwerk"]
[170,"EigenesNetzwerk"]
[171,"EigenesNetzwerk"]
[172,"EigenesNetzwerk"]
[173,"EigenesNetzwerk"]
[174,"EigenesNetzwerk"]
[175,"EigenesNetzwerk"]
[176,"EigenesNetzwerk"]
[177,"EigenesNetzwerk"]
[178,"EigenesNetzwerk"]
[179,"EigenesNetzwerk"]
[180,"EigenesNetzwerk"]
[181,"EigenesNetzwerk"]
[182,"EigenesNetzwerk"]
[183,"EigenesNetzwerk"]
[184,"EigenesNetzwerk"]
[185,"EigenesNetzwerk"]
[186,"EigenesNetzwerk"]
[187,"EigenesNetzwerk"]
[188,"EigenesNetzwerk"]
[189,"EigenesNetzwerk"]
[190,"EigenesNetzwerk"]
[191,"EigenesNetzwerk"]
[192,"EigenesNetzwerk"]
[193,"EigenesNetzwerk"]
[194,"EigenesNetzwerk"]
[{"$f":"A195+1","v":195},"EigenesNetzwerk"]
[196,"EigenesNetzwerk"]
[197,"EigenesNetzwerk"]
[198,"EigenesNetzwerk"]
[199,"EigenesNetzwerk"]
[200,"EigenesNetzwerk"]
[201,"EigenesNetzwerk"]
[202,"EigenesNetzwerk"]
[203,"EigenesNetzwerk"]
[204,"EigenesNetzwerk"]
[205,"EigenesNetzwerk"]
[206,"EigenesNetzwerk"]
[207,"EigenesNetzwerk"]
[208,"EigenesNetzwerk"]
[209,"EigenesNetzwerk"]
[210,"EigenesNetzwerk"]
[211,"EigenesNetzwerk"]
[212,"EigenesNetzwerk"]
[213,"EigenesNetzwerk"]
[214,"EigenesNetzwerk"]
[215,"EigenesNetzwerk"]
[216,"EigenesNetzwerk"]
[217,"EigenesNetzwerk"]
[218,"EigenesNetzwerk"]
[219,"EigenesNetzwerk"]
[220,"EigenesNetzwerk"]
[221,"EigenesNetzwerk"]
[222,"EigenesNetzwerk"]
[223,"EigenesNetzwerk"]
[224,"EigenesNetzwerk"]
[225,"EigenesNetzwerk"]
[226,"EigenesNetzwerk"]
[227,"EigenesNetzwerk"]
[228,"EigenesNetzwerk"]
[229,"EigenesNetzwerk"]
[230,"EigenesNetzwerk"]
[231,"EigenesNetzwerk"]
[232,"EigenesNetzwerk"]
[233,"EigenesNetzwerk"]
[234,"EigenesNetzwerk"]
[235,"EigenesNetzwerk"]
[236,"EigenesNetzwerk"]
[237,"EigenesNetzwerk"]
[238,"EigenesNetzwerk"]
[239,"EigenesNetzwerk"]
[240,"EigenesNetzwerk"]
[241,"EigenesNetzwerk"]
[242,"EigenesNetzwerk"]
[243,"EigenesNetzwerk"]
[244,"EigenesNetzwerk"]
[245,"EigenesNetzwerk"]
[246,"EigenesNetzwerk"]
[247,"EigenesNetzwerk"]
[248,"EigenesNetzwerk"]
[249,"EigenesNetzwerk"]
[250,"EigenesNetzwerk"]
[251,"EigenesNetzwerk"]
[252,"EigenesNetzwerk"]
[253,"EigenesNetzwerk"]
[254,"EigenesNetzwerk"]
[255,"EigenesNetzwerk"]
[256,"EigenesNetzwerk"]
[257,"EigenesNetzwerk"]
[258,"EigenesNetzwerk"]
[{"$f":"A259+1","v":259},"EigenesNetzwerk"]
[260,"EigenesNetzwerk"]
[261,"EigenesNetzwerk"]
[262,"EigenesNetzwerk"]
[263,"EigenesNetzwerk"]
[264,"EigenesNetzwerk"]
[265,"EigenesNetzwerk"]
[266,"EigenesNetzwerk"]
[267,"EigenesNetzwerk"]
[268,"EigenesNetzwerk"]
[269,"EigenesNetzwerk"]
[270,"EigenesNetzwerk"]
[271,"EigenesNetzwerk"]
[272,"EigenesNetzwerk"]
[273,"EigenesNetzwerk"]
[274,"EigenesNetzwerk"]
[275,"EigenesNetzwerk"]
[276,"EigenesNetzwerk"]
[277,"EigenesNetzwerk"]
[278,"EigenesNetzwerk"]
[279,"EigenesNetzwerk"]
[280,"EigenesNetzwerk"]
[281,"EigenesNetzwerk"]
[282,"EigenesNetzwerk"]
[283,"EigenesNetzwerk"]
[284,"EigenesNetzwerk"]
[285,"EigenesNetzwerk"]
[286,"EigenesNetzwerk"]
[287,"EigenesNetzwerk"]
[288,"EigenesNetzwerk"]
[289,"EigenesNetzwerk"]
[290,"EigenesNetzwerk"]
[291,"EigenesNetzwerk"]
[292,"EigenesNetzwerk"]
[293,"EigenesNetzwerk"]
[294,"EigenesNetzwerk"]
[295,"EigenesNetzwerk"]
[296,"EigenesNetzwerk"]
[297,"EigenesNetzwerk"]
[298,"EigenesNetzwerk"]
[299,"EigenesNetzwerk"]
[300,"EigenesNetzwerk"]
[301,"EigenesNetzwerk"]
[302,"EigenesNetzwerk"]
[303,"EigenesNetzwerk"]
[304,"EigenesNetzwerk"]
[305,"EigenesNetzwerk"]
[306,"EigenesNetzwerk"]
[307,"EigenesNetzwerk"]
[308,"EigenesNetzwerk"]
[309,"EigenesNetzwerk"]
[310,"EigenesNetzwerk"]
[311,"EigenesNetzwerk"]
[312,"EigenesNetzwerk"]
[313,"EigenesNetzwerk"]
[314,"EigenesNetzwerk"]
[315,"EigenesNetzwerk"]
[316,"EigenesNetzwerk"]
[317,"EigenesNetzwerk"]
[318,"EigenesNetzwerk"]
[319,"EigenesNetzwerk"]
[320,"EigenesNetzwerk"]
[321,"EigenesNetzwerk"]
[322,"EigenesNetzwerk"]
[{"$f":"A323+1","v":323},"EigenesNetzwerk"]
[324,"EigenesNetzwerk"]
[325,"EigenesNetzwerk"]
[326,"EigenesNetzwerk"]
[327,"EigenesNetzwerk"]
[328,"EigenesNetzwerk"]
[329,"EigenesNetzwerk"]
[330,"EigenesNetzwerk"]
[331,"EigenesNetzwerk"]
[332,"EigenesNetzwerk"]
[333,"EigenesNetzwerk"]
[334,"EigenesNetzwerk"]
[335,"EigenesNetzwerk"]
[336,"EigenesNetzwerk"]
[337,"EigenesNetzwerk"]
[338,"EigenesNetzwerk"]
[339,"EigenesNetzwerk"]
[340,"EigenesNetzwerk"]
[341,"EigenesNetzwerk"]
[342,"EigenesNetzwerk"]
[343,"EigenesNetzwerk"]
[344,"EigenesNetzwerk"]
[345,"EigenesNetzwerk"]
[346,"EigenesNetzwerk"]
[347,"EigenesNetzwerk"]
[348,"EigenesNetzwerk"]
[349,"EigenesNetzwerk"]
[350,"EigenesNetzwerk"]
[351,"EigenesNetzwerk"]
[352,"EigenesNetzwerk"]
[353,"EigenesNetzwerk"]
[354,"EigenesNetzwerk"]
[355,"EigenesNetzwerk"]
[356,"EigenesNetzwerk"]
[357,"EigenesNetzwerk"]
[358,"EigenesNetzwerk"]
[359,"EigenesNetzwerk"]
[360,"EigenesNetzwerk"]
[361,"EigenesNetzwerk"]
[362,"EigenesNetzwerk"]
[363,"EigenesNetzwerk"]
[364,"EigenesNetzwerk"]
[365,"EigenesNetzwerk"]
[366,"EigenesNetzwerk"]
[367,"EigenesNetzwerk"]
[368,"EigenesNetzwerk"]
[369,"EigenesNetzwerk"]
[370,"EigenesNetzwerk"]
[371,"EigenesNetzwerk"]
[372,"EigenesNetzwerk"]
[373,"EigenesNetzwerk"]
[374,"EigenesNetzwerk"]
[375,"EigenesNetzwerk"]
[376,"EigenesNetzwerk"]
[377,"EigenesNetzwerk"]
[378,"EigenesNetzwerk"]
[379,"EigenesNetzwerk"]
[380,"EigenesNetzwerk"]
[381,"EigenesNetzwerk"]
[382,"EigenesNetzwerk"]
[383,"EigenesNetzwerk"]
[384,"EigenesNetzwerk"]
[385,"EigenesNetzwerk"]
[386,"EigenesNetzwerk"]
[{"$f":"A387+1","v":387},"EigenesNetzwerk"]
[388,"EigenesNetzwerk"]
[389,"EigenesNetzwerk"]
[390,"EigenesNetzwerk"]
[391,"EigenesNetzwerk"]
[392,"EigenesNetzwerk"]
[393,"EigenesNetzwerk"]
[394,"EigenesNetzwerk"]
[395,"EigenesNetzwerk"]
[396,"EigenesNetzwerk"]
[397,"EigenesNetzwerk"]
[398,"EigenesNetzwerk"]
[399,"EigenesNetzwerk"]
[400,"EigenesNetzwerk"]
[401,"EigenesNetzwerk"]
[402,"EigenesNetzwerk"]
[403,"EigenesNetzwerk"]
[404,"EigenesNetzwerk"]
[405,"EigenesNetzwerk"]
[406,"EigenesNetzwerk"]
[407,"EigenesNetzwerk"]
[408,"EigenesNetzwerk"]
[409,"EigenesNetzwerk"]
[410,"EigenesNetzwerk"]
[411,"EigenesNetzwerk"]
[412,"EigenesNetzwerk"]
[413,"EigenesNetzwerk"]
[414,"EigenesNetzwerk"]
[415,"EigenesNetzwerk"]
[416,"EigenesNetzwerk"]
[417,"EigenesNetzwerk"]
[418,"EigenesNetzwerk"]
[419,"EigenesNetzwerk"]
[420,"EigenesNetzwerk"]
[421,"EigenesNetzwerk"]
[422,"EigenesNetzwerk"]
[423,"EigenesNetzwerk"]
[424,"EigenesNetzwerk"]
[425,"EigenesNetzwerk"]
[426,"EigenesNetzwerk"]
[427,"EigenesNetzwerk"]
[428,"EigenesNetzwerk"]
[429,"EigenesNetzwerk"]
[430,"EigenesNetzwerk"]
[431,"EigenesNetzwerk"]
[432,"EigenesNetzwerk"]
[433,"EigenesNetzwerk"]
[434,"EigenesNetzwerk"]
[435,"EigenesNetzwerk"]
[436,"EigenesNetzwerk"]
[437,"EigenesNetzwerk"]
[438,"EigenesNetzwerk"]
[439,"EigenesNetzwerk"]
[440,"EigenesNetzwerk"]
[441,"EigenesNetzwerk"]
[442,"EigenesNetzwerk"]
[443,"EigenesNetzwerk"]
[444,"EigenesNetzwerk"]
[445,"EigenesNetzwerk"]
[446,"EigenesNetzwerk"]
[447,"EigenesNetzwerk"]
[448,"EigenesNetzwerk"]
[449,"EigenesNetzwerk"]
[450,"EigenesNetzwerk"]
[{"$f":"A451+1","v":451},"EigenesNetzwerk"]
[452,"EigenesNetzwerk"]
[453,"EigenesNetzwerk"]
[454,"EigenesNetzwerk"]
[455,"EigenesNetzwerk"]
[456,"EigenesNetzwerk"]
[457,"EigenesNetzwerk"]
[458,"EigenesNetzwerk"]
[459,"EigenesNetzwerk"]
[460,"EigenesNetzwerk"]
[461,"EigenesNetzwerk"]
[462,"EigenesNetzwerk"]
[463,"EigenesNetzwerk"]
[464,"EigenesNetzwerk"]
[465,"EigenesNetzwerk"]
[466,"EigenesNetzwerk"]
[467,"EigenesNetzwerk"]
[468,"EigenesNetzwerk"]
[469,"EigenesNetzwerk"]
[470,"EigenesNetzwerk"]
[471,"EigenesNetzwerk"]
[472,"EigenesNetzwerk"]
[473,"EigenesNetzwerk"]
[474,"EigenesNetzwerk"]
[475,"EigenesNetzwerk"]
[476,"EigenesNetzwerk"]
[477,"EigenesNetzwerk"]
[478,"EigenesNetzwerk"]
[479,"EigenesNetzwerk"]
[480,"EigenesNetzwerk"]
[481,"EigenesNetzwerk"]
[482,"EigenesNetzwerk"]
[483,"EigenesNetzwerk"]
[484,"EigenesNetzwerk"]
[485,"EigenesNetzwerk"]
[486,"EigenesNetzwerk"]
[487,"EigenesNetzwerk"]
[488,"EigenesNetzwerk"]
[489,"EigenesNetzwerk"]
[490,"EigenesNetzwerk"]
[491,"EigenesNetzwerk"]
[492,"EigenesNetzwerk"]
[493,"EigenesNetzwerk"]
[494,"EigenesNetzwerk"]
[495,"EigenesNetzwerk"]
[496,"EigenesNetzwerk"]
[497,"EigenesNetzwerk"]
[498,"EigenesNetzwerk"]
[499,"EigenesNetzwerk"]
[500,"EigenesNetzwerk"]
[null,"EigenesNetzwerk"]

{"sheet":"Kopie","index":2,"n_rows":40,"n_cols":6,"rows_kept":40}
["id","datensatztyp","Name","Ort","Berufsbezeichnung","Kommentar"]
[1,"EigenesNetzwerk","name3","ort3"]
[2,"EigenesNetzwerk","name3","ort3","beruf3"]
[3,"EigenesNetzwerk","name3","ort3","beruf3","komm1"]
[4,"EigenesNetzwerk","name3","ort3","beruf3"]
[5,"EigenesNetzwerk","name3","ort3"]
[7,"EigenesNetzwerk","name2","ort2"]
[8,"EigenesNetzwerk","name2","ort2","beruf2"]
[9,"EigenesNetzwerk","name2","ort2","beruf2","komm2"]
[10,"EigenesNetzwerk","name2","ort2","beruf2"]
[11,"EigenesNetzwerk","name2","ort2"]
[13,"EigenesNetzwerk","name3","ort3"]
[14,"EigenesNetzwerk","name3","ort3","beruf3"]
[15,"EigenesNetzwerk","name3","ort3","beruf3","komm1"]
[16,"EigenesNetzwerk","name3","ort3","beruf3"]
[17,"EigenesNetzwerk","name3","ort3"]
[19,"EigenesNetzwerk","name2","ort2"]
[20,"EigenesNetzwerk","name2","ort2","beruf2"]
[21,"EigenesNetzwerk","name2","ort2","beruf2","komm2"]
[22,"EigenesNetzwerk","name2","ort2","beruf2"]
[23,"EigenesNetzwerk","name2","ort2"]
[25,"EigenesNetzwerk","name2","ort2"]
[26,"EigenesNetzwerk","name2","ort2","beruf2"]
[27,"EigenesNetzwerk","name2","ort2","beruf2","komm2"]
[28,"EigenesNetzwerk","name2","ort2","beruf2"]
[29,"EigenesNetzwerk","name2","ort2"]
[31,"EigenesNetzwerk","UUU","ort2"]
[32,"EigenesNetzwerk","UUU","ort2","beruf2"]
[33,"EigenesNetzwerk","UUU","ort2","beruf2"]
[34,"EigenesNetzwerk","UUU","ort2","beruf2"]
[35,"EigenesNetzwerk","UUU","ort2"]
[37,"EigenesNetzwerk","XXX","ort2"]
[38,"EigenesNetzwerk","XXX","ort2","beruf2"]
[39,"EigenesNetzwerk","XXX","ort2","beruf2"]
[40,"EigenesNetzwerk","XXX","ort2","beruf2"]
[41,"EigenesNetzwerk","XXX","ort2"]
[43,"EigenesNetzwerk","LALALLLA","ORTLA","BERUFLA","KOMMLA"]
[44,"EigenesNetzwerk","BLABAL"]
[45,"EigenesNetzwerk","abpfiff"]
[46,"EigenesNetzwerk","und nochmal anpfiff"]